fUSD/lending_fUSD_20250217
["ID","MTS","AMOUNT","RATE_DAILY","PERIOD"]
[353426626,1739824244825,-1071.78,0.00013945,2]
[353426629,1739824244834,-977.2,0.00013945,2]
[353426631,1739824244843,-909.38,0.00013945,2]
[353426633,1739824244853,-773.35,0.00013945,2]
[353426635,1739824244864,-500.0,0.00013945,2]
[353426637,1739824244873,-599.87,0.00013945,2]
[353426639,1739824244882,-500.0,0.00013945,2]
[353426641,1739824244892,-1025.81,0.00013945,2]
[353426643,1739824244901,-1111.81,0.00013945,2]
[353426645,1739824244910,-683.66,0.00013945,2]
[353426647,1739824244919,-500.0,0.00013945,2]
[353426649,1739824244928,-1058.99,0.00013945,2]
[353426651,1739824244937,-500.0,0.00013945,2]
[353426653,1739824244946,-500.0,0.00013945,2]
[353426655,1739824244955,-500.0,0.00013945,2]
[353426657,1739824244965,-765.72,0.00013945,2]
[353426659,1739824244974,-500.0,0.00013945,2]
[353426661,1739824244983,-1329.95,0.00013945,2]
[353426663,1739824244993,-500.0,0.00013945,2]
[353426665,1739824245002,-500.0,0.00013945,2]
[353426667,1739824245011,-552.86,0.00013945,2]
[353426669,1739824245020,-562.76049765,0.00013945,2]
[353426671,1739824245029,-150.0,0.00013953,2]
[353426673,1739824245039,-163.37788915,0.00013973,2]
[353426675,1739824245048,-150.0,0.00013974,2]
[353426677,1739824245057,-562.76049765,0.00014,2]
[353426679,1739824245067,-650.0,0.00014,2]
[353426681,1739824245076,-151.0,0.00014,2]
[353426683,1739824245085,-151.0,0.00014,2]
[353426685,1739824245094,-151.0,0.00014,2]
[353426687,1739824245103,-151.0,0.00014,2]
[353426689,1739824245114,-151.0,0.00014,2]
[353426691,1739824245123,-9664.70904788,0.00014,2]
[353426693,1739824245132,-451.21426156,0.00014021,2]
[353426695,1739824245142,-1070.83,0.00014024,2]
[353426697,1739824245151,-695.82,0.00014024,2]
[353426699,1739824245161,-685.81,0.00014024,2]
[353426701,1739824245171,-500.0,0.00014024,2]
[353426703,1739824245180,-937.42,0.00014024,2]
[353426705,1739824245190,-500.0,0.00014024,2]
[353426707,1739824245199,-795.398462,0.00014024,2]
[353426709,1739824245209,-816.26,0.00014024,2]
[353426711,1739824245218,-500.0,0.00014024,2]
[353426713,1739824245227,-591.42,0.00014024,2]
[353426715,1739824245236,-466.65,0.00014024,2]
[353426717,1739824245246,-732.62,0.00014024,2]
[353426719,1739824245254,-567.58,0.00014024,2]
[353426721,1739824245264,-670.65,0.00014024,2]
[353426723,1739824245273,-876.32,0.00014024,2]
[353426725,1739824245282,-548.070799,0.00014024,2]
[353426727,1739824245291,-975.56,0.00014024,2]
[353426729,1739824245300,-500.0,0.00014024,2]
[353426731,1739824245310,-513.1,0.00014024,2]
[353426733,1739824245318,-2432.3,0.00014024,2]
[353426735,1739824245327,-500.0,0.00014024,2]
[353426737,1739824245337,-617.48,0.00014024,2]
[353426739,1739824245346,-1151.84,0.00014024,2]
[353426741,1739824245356,-651.63,0.00014024,2]
[353426743,1739824245367,-1462.81,0.00014024,2]
[353426745,1739824245376,-500.0,0.00014024,2]
[353426747,1739824245385,-934.89,0.00014024,2]
[353426749,1739824245394,-566.1,0.00014024,2]
[353426751,1739824245405,-151.0,0.00014024,2]
[353426753,1739824245415,-151.0,0.00014024,2]
[353426755,1739824245424,-985.31,0.00014024,2]
[353426757,1739824245436,-628.67,0.00014024,2]
[353426759,1739824245445,-151.0,0.00014024,2]
[353426761,1739824245455,-556.062407,0.00014024,2]
[353426763,1739824245463,-556.062407,0.00014024,2]
[353426765,1739824245472,-500.0,0.00014024,2]
[353426767,1739824245482,-890.88,0.00014024,2]
[353426769,1739824245491,-219.73,0.00014025,2]
[353426771,1739824245500,-500.0,0.00014025,2]
[353426773,1739824245513,-302.12,0.00014025,2]
[353426775,1739824245522,-500.0,0.00014025,2]
[353426777,1739824245531,-500.0,0.00014025,2]
[353426779,1739824245540,-500.0,0.00014025,2]
[353426781,1739824245549,-500.0,0.00014025,2]
[353426783,1739824245558,-500.0,0.00014025,2]
[353426785,1739824245568,-500.0,0.00014025,2]
[353426787,1739824245577,-500.0,0.00014025,2]
[353426789,1739824245587,-500.0,0.00014025,2]
[353426791,1739824245595,-500.0,0.00014025,2]
[353426793,1739824245605,-500.0,0.00014025,2]
[353426795,1739824245616,-500.0,0.00014025,2]
[353426797,1739824245625,-500.0,0.00014025,2]
[353426799,1739824245634,-500.0,0.00014025,2]
[353426801,1739824245644,-500.0,0.00014025,2]
[353426803,1739824245653,-500.0,0.00014025,2]
[353426805,1739824245663,-500.0,0.00014025,2]
[353426807,1739824245672,-500.0,0.00014025,2]
[353426809,1739824245681,-500.0,0.00014025,2]
[353426811,1739824245690,-500.0,0.00014025,2]
[353426812,1739824245700,-150.21,0.00014025,2]
[353426814,1739824245709,-500.0,0.00014025,2]
[353426816,1739824245719,-500.0,0.00014025,2]
[353426818,1739824245728,-500.0,0.00014025,2]
[353426820,1739824245738,-500.0,0.00014025,2]
[353426822,1739824245747,-217.13,0.00014025,2]
[353426824,1739824245756,-500.0,0.00014025,2]
[353426826,1739824245766,-356.19,0.00014025,2]
[353426828,1739824245775,-500.0,0.00014025,2]
[353426830,1739824245785,-500.0,0.00014025,2]
[353426832,1739824245794,-500.0,0.00014025,2]
[353426834,1739824245804,-500.0,0.00014025,2]
[353426836,1739824245813,-500.0,0.00014025,2]
[353426838,1739824245823,-500.0,0.00014025,2]
[353426840,1739824245832,-332.6139351,0.00014025,2]
[353426842,1739824245842,-567.94,0.00014025,2]
[353426844,1739824245852,-187.06,0.00014025,2]
[353426846,1739824245862,-768.43,0.00014025,2]
[353426849,1739824245872,-500.0,0.00014025,2]
[353426851,1739824245882,-476.49,0.00014025,2]
[353426853,1739824245892,-647.34,0.00014025,2]
[353426855,1739824245901,-500.0,0.00014025,2]
[353426856,1739824245910,-983.87,0.00014025,2]
[353426858,1739824245920,-500.0,0.00014025,2]
[353426861,1739824245929,-685.53,0.00014025,2]
[353426863,1739824245939,-500.0,0.00014025,2]
[353426864,1739824245948,-743.63,0.00014025,2]
[353426866,1739824245958,-230.81261,0.00014025,2]
[353426868,1739824245968,-670.47,0.00014025,2]
[353426870,1739824245977,-230.81261,0.00014025,2]
[353426872,1739824245987,-500.0,0.00014025,2]
[353426874,1739824245996,-500.0,0.00014025,2]
[353426876,1739824246006,-500.0,0.00014025,2]
[353426878,1739824246015,-654.54,0.00014025,2]
[353426880,1739824246025,-971.37,0.00014025,2]
[353426881,1739824246035,-1065.05,0.00014025,2]
[353426883,1739824246044,-500.0,0.00014025,2]
[353426885,1739824246053,-500.0,0.00014025,2]
[353426886,1739824246063,-1119.09,0.00014025,2]
[353426887,1739824246073,-500.0,0.00014025,2]
[353426888,1739824246082,-500.0,0.00014025,2]
[353426889,1739824246092,-1251.34,0.00014025,2]
[353426890,1739824246102,-189.682133,0.00014025,2]
[353426893,1739824246112,-151.0,0.00014025,2]
[353426896,1739824246121,-500.0,0.00014025,2]
[353426898,1739824246130,-151.0,0.00014025,2]
[353426901,1739824246139,-189.682133,0.00014025,2]
[353426904,1739824246149,-755.73,0.00014025,2]
[353426907,1739824246158,-350.12,0.00014025,2]
[353426910,1739824246167,-500.0,0.00014025,2]
[353426913,1739824246176,-151.0,0.00014025,2]
[353426915,1739824246186,-980.53,0.00014025,2]
[353426918,1739824246195,-500.0,0.00014025,2]
[353426921,1739824246205,-500.0,0.00014025,2]
[353426924,1739824246215,-500.0,0.00014025,2]
[353426927,1739824246225,-500.0,0.00014025,2]
[353426930,1739824246234,-500.0,0.00014025,2]
[353426933,1739824246243,-842.52,0.00014025,2]
[353426936,1739824246253,-500.0,0.00014025,2]
[353426939,1739824246262,-500.0,0.00014025,2]
[353426942,1739824246272,-500.0,0.00014025,2]
[353426945,1739824246281,-500.0,0.00014025,2]
[353426947,1739824246290,-500.0,0.00014025,2]
[353426949,1739824246300,-243.18944589,0.00014025,2]
[353426951,1739824246309,-500.0,0.00014025,2]
[353426953,1739824246319,-500.0,0.00014025,2]
[353426956,1739824246328,-223.701866,0.00014025,2]
[353426959,1739824246338,-500.0,0.00014025,2]
[353426962,1739824246346,-223.701866,0.00014025,2]
[353426965,1739824246360,-500.0,0.00014025,2]
[353426968,1739824246369,-500.0,0.00014025,2]
[353426971,1739824246379,-500.0,0.00014025,2]
[353426974,1739824246388,-500.0,0.00014025,2]
[353426977,1739824246398,-500.0,0.00014025,2]
[353426980,1739824246408,-500.0,0.00014025,2]
[353426983,1739824246418,-500.0,0.00014025,2]
[353426986,1739824246428,-500.0,0.00014025,2]
[353426989,1739824246440,-500.0,0.00014025,2]
[353426992,1739824246449,-500.0,0.00014025,2]
[353426995,1739824246459,-500.0,0.00014025,2]
[353426998,1739824246468,-500.0,0.00014025,2]
[353427001,1739824246478,-500.0,0.00014025,2]
[353427004,1739824246487,-276.8,0.00014026,2]
[353427006,1739824246496,-500.0,0.00014026,2]
[353427009,1739824246505,-500.0,0.00014026,2]
[353427012,1739824246514,-189.6,0.00014026,2]
[353427015,1739824246524,-500.0,0.00014026,2]
[353427018,1739824246532,-429.09842391,0.00014026,2]
[353427021,1739824246542,-500.0,0.00014026,2]
[353427024,1739824246552,-500.0,0.00014026,2]
[353427027,1739824246562,-500.0,0.00014026,2]
[353427030,1739824246572,-500.0,0.00014026,2]
[353427033,1739824246581,-240.32,0.00014026,2]
[353427036,1739824246590,-500.71831996,0.00014026,2]
[353427039,1739824246599,-500.0,0.00014026,2]
[353427042,1739824246610,-248.91,0.00014026,2]
[353427045,1739824246619,-500.0,0.00014026,2]
[353427048,1739824246629,-151.0,0.00014026,2]
[353427051,1739824246638,-296.518568,0.00014026,2]
[353427054,1739824246647,-151.0,0.00014026,2]
[353427057,1739824246657,-151.0,0.00014026,2]
[353427060,1739824246666,-151.0,0.00014026,2]
[353427062,1739824246676,-151.0,0.00014026,2]
[353427065,1739824246685,-151.0,0.00014026,2]
[353427068,1739824246695,-860.15,0.00014026,2]
[353427071,1739824246705,-2183.23,0.00014026,2]
[353427074,1739824246714,-500.0,0.00014026,2]
[353427077,1739824246723,-500.0,0.00014026,2]
[353427080,1739824246732,-500.0,0.00014026,2]
[353427083,1739824246742,-500.0,0.00014026,2]
[353427086,1739824246751,-500.0,0.00014026,2]
[353427089,1739824246760,-566.08,0.00014026,2]
[353427092,1739824246770,-661.86,0.00014026,2]
[353427095,1739824246779,-500.0,0.00014026,2]
[353427098,1739824246788,-500.0,0.00014026,2]
[353427101,1739824246798,-500.0,0.00014026,2]
[353427104,1739824246807,-500.0,0.00014026,2]
[353427107,1739824246816,-631.5,0.00014026,2]
[353427110,1739824246826,-151.0,0.00014027,2]
[353427113,1739824246836,-151.0,0.00014027,2]
[353427116,1739824246845,-500.0,0.00014027,2]
[353427119,1739824246854,-261.594492,0.00014027,2]
[353427122,1739824246864,-500.0,0.00014027,2]
[353427125,1739824246873,-151.0,0.00014027,2]
[353427128,1739824246883,-500.0,0.00014027,2]
[353427131,1739824246893,-151.0,0.00014027,2]
[353427134,1739824246903,-500.0,0.00014027,2]
[353427137,1739824246913,-500.0,0.00014027,2]
[353427140,1739824246922,-629.92961416,0.00014027,2]
[353427143,1739824246932,-385.831293,0.00014027,2]
[353427146,1739824246941,-156.76,0.00014027,2]
[353427149,1739824246951,-385.831293,0.00014027,2]
[353427152,1739824246960,-500.0,0.00014027,2]
[353427155,1739824246970,-151.0,0.00014027,2]
[353427158,1739824246981,-151.0,0.00014027,2]
[353427161,1739824246990,-151.0,0.00014027,2]
[353427164,1739824246999,-151.0,0.00014027,2]
[353427167,1739824247009,-151.0,0.00014027,2]
[353427170,1739824247018,-151.0,0.00014027,2]
[353427173,1739824247027,-151.0,0.00014027,2]
[353427176,1739824247037,-151.0,0.00014027,2]
[353427179,1739824247046,-151.0,0.00014027,2]
[353427182,1739824247055,-151.0,0.00014027,2]
[353427185,1739824247065,-151.0,0.00014027,2]
[353427188,1739824247074,-151.0,0.00014027,2]
[353427191,1739824247083,-500.0,0.00014027,2]
[353427194,1739824247093,-151.0,0.00014027,2]
[353427197,1739824247102,-151.0,0.00014027,2]
[353427200,1739824247112,-500.0,0.00014027,2]
[353427203,1739824247123,-151.0,0.00014027,2]
[353427206,1739824247132,-500.0,0.00014027,2]
[353427209,1739824247142,-151.0,0.00014027,2]
[353427212,1739824247151,-500.0,0.00014027,2]
[353427215,1739824247160,-500.0,0.00014027,2]
[353427218,1739824247169,-151.0,0.00014027,2]
[353427221,1739824247179,-151.0,0.00014027,2]
[353427224,1739824247189,-151.0,0.00014027,2]
[353427227,1739824247199,-500.0,0.00014027,2]
[353427230,1739824247208,-500.0,0.00014027,2]
[353427233,1739824247218,-500.0,0.00014027,2]
[353427235,1739824247227,-500.0,0.00014027,2]
[353427237,1739824247237,-500.0,0.00014027,2]
[353427241,1739824247247,-500.0,0.00014027,2]
[353427244,1739824247256,-590.81,0.00014027,2]
[353427246,1739824247266,-577.67,0.00014027,2]
[353427249,1739824247276,-1001.9,0.00014027,2]
[353427253,1739824247285,-587.36,0.00014027,2]
[353427256,1739824247295,-1071.78,0.00014027,2]
[353427258,1739824247304,-977.2,0.00014027,2]
[353427262,1739824247315,-909.38,0.00014027,2]
[353427264,1739824247324,-773.35,0.00014027,2]
[353427265,1739824247334,-500.0,0.00014027,2]
[353427268,1739824247343,-599.87,0.00014027,2]
[353427271,1739824247353,-500.0,0.00014027,2]
[353427274,1739824247369,-1025.81,0.00014027,2]
[353427277,1739824247378,-1111.81,0.00014027,2]
[353427280,1739824247388,-683.66,0.00014027,2]
[353427283,1739824247398,-500.0,0.00014027,2]
[353427286,1739824247408,-1058.99,0.00014027,2]
[353427289,1739824247417,-500.0,0.00014027,2]
[353427292,1739824247426,-500.0,0.00014027,2]
[353427295,1739824247437,-500.0,0.00014027,2]
[353427298,1739824247447,-765.72,0.00014027,2]
[353427301,1739824247456,-500.0,0.00014027,2]
[353427303,1739824247465,-1329.95,0.00014027,2]
[353427305,1739824247475,-500.0,0.00014027,2]
[353427307,1739824247486,-500.0,0.00014027,2]
[353427309,1739824247495,-552.86,0.00014027,2]
[353427311,1739824247505,-1346.76460986,0.00014029,2]
[353427313,1739824247514,-150.0,0.00014031,2]
[353427315,1739824247524,-150.0,0.00014053,2]
[353427317,1739824247534,-163.37788915,0.00014055,2]
[353427319,1739824247543,-150.0,0.00014059,2]
[353427321,1739824247553,-150.0,0.00014059,2]
[353427323,1739824247563,-5005.97755,0.0001406,2]
[353427325,1739824247572,-700.0,0.00014078,2]
[353427327,1739824247582,-562.76049765,0.00014082,2]
[353427329,1739824247592,-150.0,0.00014104,2]
[353427331,1739824247602,-1070.83,0.00014106,2]
[353427333,1739824247616,-695.82,0.00014106,2]
[353427334,1739824247625,-685.81,0.00014106,2]
[353427335,1739824247635,-500.0,0.00014106,2]
[353427336,1739824247644,-937.42,0.00014106,2]
[353427337,1739824247653,-500.0,0.00014106,2]
[353427338,1739824247663,-795.398462,0.00014106,2]
[353427339,1739824247673,-816.26,0.00014106,2]
[353427340,1739824247682,-500.0,0.00014106,2]
[353427341,1739824247692,-591.42,0.00014106,2]
[353427343,1739824247701,-732.62,0.00014106,2]
[353427345,1739824247711,-567.58,0.00014106,2]
[353427347,1739824247721,-670.65,0.00014106,2]
[353427349,1739824247731,-876.32,0.00014106,2]
[353427351,1739824247740,-548.070799,0.00014106,2]
[353427353,1739824247750,-975.56,0.00014106,2]
[353427355,1739824247759,-500.0,0.00014106,2]
[353427357,1739824247769,-513.1,0.00014106,2]
[353427359,1739824247779,-2432.3,0.00014106,2]
[353427361,1739824247788,-500.0,0.00014106,2]
[353427363,1739824247798,-617.48,0.00014106,2]
[353427365,1739824247808,-1151.84,0.00014106,2]
[353427367,1739824247818,-651.63,0.00014106,2]
[353427368,1739824247827,-1462.81,0.00014106,2]
[353427371,1739824247838,-500.0,0.00014106,2]
[353427372,1739824247848,-934.89,0.00014106,2]
[353427374,1739824247857,-566.1,0.00014106,2]
[353427377,1739824247869,-985.31,0.00014106,2]
[353427379,1739824247879,-628.67,0.00014106,2]
[353427381,1739824247889,-500.0,0.00014106,2]
[353427383,1739824247899,-890.88,0.00014106,2]
[353427385,1739824247909,-500.0,0.00014107,2]
[353427386,1739824247918,-500.0,0.00014107,2]
[353427389,1739824247928,-500.0,0.00014107,2]
[353427391,1739824247938,-500.0,0.00014107,2]
[353427392,1739824247947,-500.0,0.00014107,2]
[353427395,1739824247957,-500.0,0.00014107,2]
[353427397,1739824247967,-260.54,0.00014107,2]
[353427399,1739824247977,-500.0,0.00014107,2]
[353427401,1739824247988,-500.0,0.00014107,2]
[353427402,1739824247997,-500.0,0.00014107,2]
[353427404,1739824248007,-500.0,0.00014107,2]
[353427406,1739824248017,-500.0,0.00014107,2]
[353427408,1739824248027,-500.0,0.00014107,2]
[353427410,1739824248037,-500.0,0.00014107,2]
[353427412,1739824248047,-500.0,0.00014107,2]
[353427414,1739824248058,-500.0,0.00014107,2]
[353427416,1739824248069,-500.0,0.00014107,2]
[353427418,1739824248079,-500.0,0.00014107,2]
[353427420,1739824248089,-500.0,0.00014107,2]
[353427422,1739824248099,-500.0,0.00014107,2]
[353427424,1739824248111,-500.0,0.00014107,2]
[353427426,1739824248122,-500.0,0.00014107,2]
[353427428,1739824248132,-500.0,0.00014107,2]
[353427430,1739824248143,-500.0,0.00014107,2]
[353427432,1739824248153,-500.0,0.00014107,2]
[353427434,1739824248163,-500.0,0.00014107,2]
[353427436,1739824248175,-318.33,0.00014107,2]
[353427438,1739824248186,-500.0,0.00014107,2]
[353427440,1739824248196,-500.0,0.00014107,2]
[353427442,1739824248207,-500.0,0.00014107,2]
[353427444,1739824248217,-500.0,0.00014107,2]
[353427446,1739824248228,-567.94,0.00014107,2]
[353427448,1739824248239,-768.43,0.00014107,2]
[353427450,1739824248250,-500.0,0.00014107,2]
[353427452,1739824248260,-647.34,0.00014107,2]
[353427454,1739824248271,-983.87,0.00014107,2]
[353427456,1739824248282,-500.0,0.00014107,2]
[353427458,1739824248293,-685.53,0.00014107,2]
[353427460,1739824248304,-500.0,0.00014107,2]
[353427462,1739824248316,-743.63,0.00014107,2]
[353427464,1739824248326,-670.47,0.00014107,2]
[353427466,1739824248337,-500.0,0.00014107,2]
[353427468,1739824248348,-500.0,0.00014107,2]
[353427470,1739824248362,-500.0,0.00014107,2]
[353427472,1739824248373,-654.54,0.00014107,2]
[353427474,1739824248383,-971.37,0.00014107,2]
[353427476,1739824248393,-1065.05,0.00014107,2]
[353427478,1739824248406,-500.0,0.00014107,2]
[353427480,1739824248418,-500.0,0.00014107,2]
[353427482,1739824248428,-1119.09,0.00014107,2]
[353427484,1739824248440,-500.0,0.00014107,2]
[353427486,1739824248451,-500.0,0.00014107,2]
[353427488,1739824248462,-1251.34,0.00014107,2]
[353427490,1739824248472,-500.0,0.00014107,2]
[353427492,1739824248483,-755.73,0.00014107,2]
[353427494,1739824248493,-500.0,0.00014107,2]
[353427496,1739824248505,-980.53,0.00014107,2]
[353427498,1739824248516,-628.55721957,0.00014107,2]
[353427501,1739824248528,-500.0,0.00014107,2]
[353427503,1739824248542,-500.0,0.00014107,2]
[353427505,1739824248555,-500.0,0.00014107,2]
[353427507,1739824248566,-500.0,0.00014107,2]
[353427509,1739824248576,-842.52,0.00014107,2]
[353427511,1739824248587,-500.0,0.00014107,2]
[353427513,1739824248598,-500.0,0.00014107,2]
[353427515,1739824248608,-565.9,0.00014107,2]
[353427516,1739824248619,-500.0,0.00014107,2]
[353427519,1739824248630,-500.0,0.00014107,2]
[353427521,1739824248641,-636.27381167,0.00014107,2]
[353427523,1739824248652,-500.0,0.00014107,2]
[353427525,1739824248663,-500.0,0.00014107,2]
[353427527,1739824248674,-151.0,0.00014107,2]
[353427529,1739824248684,-566.0,0.00014107,2]
[353427531,1739824248694,-500.0,0.00014107,2]
[353427533,1739824248705,-500.0,0.00014107,2]
[353427535,1739824248715,-151.0,0.00014107,2]
[353427537,1739824248726,-500.0,0.00014107,2]
[353427539,1739824248736,-500.0,0.00014107,2]
[353427541,1739824248747,-500.0,0.00014107,2]
[353427543,1739824248757,-500.0,0.00014107,2]
[353427545,1739824248767,-151.0,0.00014107,2]
[353427547,1739824248777,-500.0,0.00014107,2]
[353427549,1739824248787,-500.0,0.00014107,2]
[353427551,1739824248798,-151.0,0.00014107,2]
[353427553,1739824248808,-500.0,0.00014107,2]
[353427555,1739824248819,-151.0,0.00014107,2]
[353427557,1739824248830,-500.0,0.00014107,2]
[353427559,1739824248840,-500.0,0.00014107,2]
[353427561,1739824248850,-500.0,0.00014107,2]
[353427563,1739824248861,-289.44,0.00014108,2]
[353427565,1739824248873,-500.0,0.00014108,2]
[353427567,1739824248884,-500.0,0.00014108,2]
[353427569,1739824248895,-500.0,0.00014108,2]
[353427571,1739824248906,-500.0,0.00014108,2]
[353427573,1739824248916,-500.0,0.00014108,2]
[353427575,1739824248926,-151.0,0.00014108,2]
[353427598,1739824248937,-575.65,0.00014108,2]
[353427601,1739824249161,-151.0,0.00014108,2]
[353427602,1739824249171,-151.0,0.00014108,2]
[353427603,1739824249180,-500.0,0.00014108,2]
[353427604,1739824249190,-500.0,0.00014108,2]
[353427605,1739824249200,-500.0,0.00014108,2]
[353427606,1739824249210,-563.04,0.00014108,2]
[353427607,1739824249219,-860.15,0.00014108,2]
[353427608,1739824249230,-2183.23,0.00014108,2]
[353427609,1739824249239,-500.0,0.00014108,2]
[353427610,1739824249247,-500.0,0.00014108,2]
[353427611,1739824249256,-500.0,0.00014108,2]
[353427613,1739824249266,-485.78,0.00014108,2]
[353427615,1739824249276,-500.0,0.00014108,2]
[353427617,1739824249286,-500.0,0.00014108,2]
[353427618,1739824249296,-566.08,0.00014108,2]
[353427620,1739824249306,-661.86,0.00014108,2]
[353427622,1739824249316,-500.0,0.00014108,2]
[353427624,1739824249326,-500.0,0.00014108,2]
[353427626,1739824249337,-500.0,0.00014108,2]
[353427628,1739824249347,-151.0,0.00014108,2]
[353427630,1739824249360,-185.56,0.00014108,2]
[353427632,1739824249371,-151.0,0.00014108,2]
[353427634,1739824249382,-150.0,0.00014108,2]
[353427636,1739824249393,-151.0,0.00014108,2]
[353427638,1739824249404,-556.062407,0.00014108,2]
[353427640,1739824249413,-631.5,0.00014108,2]
[353427642,1739824249423,-556.062407,0.00014108,2]
[353427644,1739824249434,-500.0,0.00014108,2]
[353427646,1739824249445,-251.28890042,0.00014108,3]
[353427648,1739824249456,-1553951.53788064,0.00014109,3]
[353427650,1739824249466,-151.0,0.00014109,2]
[353427652,1739824249476,-151.0,0.00014109,2]
[353427654,1739824249487,-211.552633,0.00014109,2]
[353427656,1739824249497,-500.0,0.00014109,2]
[353427658,1739824249507,-500.0,0.00014109,2]
[353427660,1739824249517,-500.0,0.00014109,2]
[353427662,1739824249526,-500.0,0.00014109,2]
[353427664,1739824249536,-500.0,0.00014109,2]
[353427666,1739824249545,-500.0,0.00014109,2]
[353427668,1739824249555,-500.0,0.00014109,2]
[353427670,1739824249565,-500.0,0.00014109,2]
[353427672,1739824249574,-500.0,0.00014109,2]
[353427674,1739824249584,-500.0,0.00014109,2]
[353427676,1739824249593,-302.99,0.00014109,2]
[353427677,1739824249603,-606.42,0.00014109,2]
[353427679,1739824249613,-500.0,0.00014109,2]
[353427681,1739824249622,-500.0,0.00014109,2]
[353427683,1739824249632,-500.0,0.00014109,2]
[353427686,1739824249642,-518.38,0.00014109,2]
[353427687,1739824249652,-500.0,0.00014109,2]
[353427689,1739824249662,-230.81261,0.00014109,2]
[353427691,1739824249671,-230.81261,0.00014109,2]
[353427693,1739824249680,-590.81,0.00014109,2]
[353427695,1739824249689,-189.682133,0.00014109,2]
[353427697,1739824249699,-151.0,0.00014109,2]
[353427699,1739824249708,-151.0,0.00014109,2]
[353427701,1739824249718,-189.682133,0.00014109,2]
[353427703,1739824249727,-577.67,0.00014109,2]
[353427705,1739824249737,-1001.9,0.00014109,2]
[353427707,1739824249747,-587.36,0.00014109,2]
[353427709,1739824249756,-151.0,0.00014109,2]
[353427711,1739824249766,-1071.78,0.00014109,2]
[353427713,1739824249776,-977.2,0.00014109,2]
[353427715,1739824249785,-909.38,0.00014109,2]
[353427717,1739824249795,-773.35,0.00014109,2]
[353427720,1739824249805,-500.0,0.00014109,2]
[353427722,1739824249815,-599.87,0.00014109,2]
[353427724,1739824249825,-500.0,0.00014109,2]
[353427726,1739824249834,-1025.81,0.00014109,2]
[353427728,1739824249844,-1111.81,0.00014109,2]
[353427729,1739824249854,-683.66,0.00014109,2]
[353427731,1739824249864,-500.0,0.00014109,2]
[353427734,1739824249874,-223.701866,0.00014109,2]
[353427736,1739824249884,-151.0,0.00014109,2]
[353427737,1739824249894,-223.701866,0.00014109,2]
[353427739,1739824249904,-1058.99,0.00014109,2]
[353427741,1739824249914,-500.0,0.00014109,2]
[353427744,1739824249924,-500.0,0.00014109,2]
[353427746,1739824249934,-500.0,0.00014109,2]
[353427748,1739824249945,-765.72,0.00014109,2]
[353427750,1739824249955,-500.0,0.00014109,2]